Cogmind - Beta 17.1 @@@ ROGUE MODE // 2026.09.13 @ 15:26:14 Player: 7H-NLC Result: Destroyed by FQ-I77(R) with Subdweller Machine Gun Performance ------------- Evolutions (0) 0 Regions Visited (3) 600 Robots Destroyed (37) 185 Value Destroyed (897) 897 Prototype IDs (0) 0 Alien Tech Used (0) 0 Bonus (-57) -57 TOTAL SCORE: 1625 Bonus ------- Follower Combat Kills 89 Friendly Fire -146 Cogmind --------- Core Integrity 0/250 Matter 255/300 Energy 11/100 System Corruption 0% Temperature Cool (0) Movement Walking (260) Ox2 Location -10/Subcaves Parts ------- > --- POWER (1) -------- (None) > --- PROPULSION (2) --- Carbon-fiber Leg > --- UTILITY (2) ------ Cooling System Large Storage Unit > --- WEAPON (2) ------- Particle Gun Subdweller Beam Cannon > --- INVENTORY (15) --- Aluminum Leg Huge Storage Unit Medium Matter Pod (100) Seismic Detector Makeshift Kinetic Plating Battle Cannon Multitool Hammer Peak State ------------ > --- POWER ------------ Light Angular Momentum Engine > --- PROPULSION ------- Carbon-fiber Leg Carbon-fiber Leg > --- UTILITY ---------- Cooling System Large Storage Unit > --- WEAPON ----------- Particle Gun Particle Gun > --- INVENTORY -------- Light Nuclear Core Aluminum Leg Aluminum Leg Cooling System Huge Storage Unit Medium Matter Pod Seismic Detector Light Armor Plating Makeshift Kinetic Plating Particle Gun Particle Gun Subdweller Beam Cannon Battle Cannon Multitool Hammer [Rating: 20] Favorites ----------- Power Light Nuclear Core Engine Light Angular Momentum Engine Power Core Light Nuclear Core Propulsion Aluminum Leg Treads Light Treads Leg Aluminum Leg Wheel Compact Wheel Utility Large Storage Unit Device Cooling System Storage Large Storage Unit Protection Light Armor Plating Weapon Particle Gun Energy Gun Particle Gun Energy Cannon Beam Cannon Ballistic Gun Assault Rifle Impact Weapon Hammer Build | -11 -10 -10 -10 ------- Run | Yrd Mat Min Sub Slots Evolved . | . . . . Power . | . . . . Propulsion . | . . . . Utility . | . . . . Weapon . | . . . . Parts Attached 36 | 7 17 2 10 Power 6 | 1 3 1 1 Engine 4 | 1 2 . 1 Core 2 | . 1 1 . Reactor . | . . . . Propulsion 12 | 2 6 1 3 Treads 3 | . 3 . . Leg 7 | . 3 1 3 Wheel 2 | 2 . . . Hover . | . . . . Flight . | . . . . Utility 9 | 2 4 . 3 Device 4 | 1 1 . 2 Storage 4 | 1 3 . . Processor . | . . . . Hackware . | . . . . Protection 1 | . . . 1 Artifact . | . . . . Weapon 9 | 2 4 . 3 Energy Gun 5 | 1 2 . 2 Energy Cannon 2 | . 1 . 1 Ballistic Gun 1 | 1 . . . Ballistic Cannon . | . . . . Launcher . | . . . . Special Weapon . | . . . . Impact Weapon 1 | . 1 . . Slashing Weapon . | . . . . Piercing Weapon . | . . . . Special Melee Weapon . | . . . . Unidentified Prototypes . | . . . . Parts Lost 12 | . 3 . 9 Power 2 | . . . 2 Propulsion 4 | . 2 . 2 Utility 2 | . . . 2 Weapon 4 | . 1 . 3 Highest Loss Streak 9 | . 1 . 9 To Critical Strikes . | . . . . Average Backups 13 | 2 11 15 14 Power 1 | . 1 . . Propulsion 1 | 1 1 . 1 Utility 7 | . 6 9 6 Weapon 2 | . 2 3 4 Tool/Special . | . . . . Unused Backups 15 | . 4 2 9 Power 1 | . 1 . . Propulsion 1 | . . 1 . Utility 9 | . 2 1 6 Weapon 2 | . 1 . 1 Tool/Special 2 | . . . 2 Average Slot Usage (%) 99 | . 99 100 98 Engine 6 | . 7 . 12 Core 7 | . 6 14 . Treads 4 | . 8 . . Leg 20 | . 12 28 27 Wheel 3 | . 6 . . Device 13 | . 14 14 13 Storage 14 | . 14 14 14 Energy Gun 21 | . 16 28 23 Energy Cannon 1 | . 3 . . Ballistic Gun 1 | . 3 . . Impact Weapon 3 | . 4 . 4 Peak Build Rating 20 | 7 13 14 20 Average Rating 12 | 4 10 13 17 On Entrance 8 | . 7 13 14 Avg Prop Armor Cover (%) 7 | . 7 . . Naked Turns . | . . . . Heaviest Build 91 | 12 91 33 37 Greatest Support 40 | 26 40 20 30 Greatest Overweight (x) 3 | . 3 1 1 Average Overweight (x) . | . . 1 1 Largest Inventory Capacity 25 | 8 25 15 15 Average Capacity 13 | 7 12 15 15 Most Carried 15 | 5 15 15 15 Average Carried 13 | 2 11 14 14 Final Capacity 15 | 8 15 15 15 Final Carried 15 | 5 15 15 8 Class Distribution -------------------- 100% | Mutant Dominant Class ---------------- Mutant | -10/Materials Mutant | -10/Mines Mutant | -10/Subcaves Resources | -11 -10 -10 -10 ----------- Run | Yrd Mat Min Sub Matter Collected 852 | 251 491 20 90 Remotely . | . . . . Salvage Created 1262 | 77 826 185 174 Parts 76 | 6 42 13 15 Haulers Intercepted 2 | . 2 . . Recyclers Shooed 1 | 1 . . . Parts Field Recycled . | . . . . Retrieved Matter . | . . . . Parts Self-Destructed 10 | . . . 10 Prevented . | . . . . Parts Restored . | . . . . Kills | -11 -10 -10 -10 ------- Run | Yrd Mat Min Sub Combat Hostiles Destroyed 24 | . 17 4 3 Melee 4 | . 4 . . Guns 16 | . 9 4 3 Cannons 3 | . 3 . . Classes Destroyed 10 | 1 6 1 2 Builder 1 | . 1 . . Tunneler 4 | 3 . 1 . Hauler 2 | . 2 . . Recycler 1 | . . 1 . Operator 2 | . 2 . . Watcher 2 | . 2 . . Swarmer 4 | . 2 2 . Grunt 17 | . 15 2 . Artisan 1 | . . . 1 Subdweller 3 | . . . 3 Thug 1 | . . . 1 Best Kill Streak 3 | 3 3 2 1 Combat Bots Only 2 | . 2 2 1 Max Kills in Single Turn 2 | 1 2 1 1 Gunslinging . | . . . . Exploded . | . . . . Melee 1 | . 1 . . Uniques/NPCs Destroyed . | . . . . Combat | -11 -10 -10 -10 -------- Run | Yrd Mat Min Sub Hostile Shots Fired 179 | . 99 15 65 Missed 52 | . 28 7 17 Hits 127 | . 71 8 48 Projectile 127 | . 71 8 48 Critical Strikes 2 | . 1 . 1 Damage Taken 1834 | . 766 74 994 Core 257 | . 109 . 148 Absorbed by Shields . | . . . . Core Remaining (%) 100 | 100 . . . Volleys Fired 109 | 7 64 10 28 Largest 2 | 2 2 2 2 Hottest 130 | 60 130 130 130 Shots Fired 205 | 14 116 20 55 Gun 183 | 14 94 20 55 Cannon 22 | . 22 . . Launcher . | . . . . Special . | . . . . Kinetic 49 | 7 42 . . Thermal 156 | 7 74 20 55 Explosive . | . . . . Electromagnetic . | . . . . Robot Hit Streak 22 | 5 12 4 22 Robot Miss Streak 8 | 2 3 4 8 Penetration Max . | . . . . Secondary Targets 1 | . 1 . . Max Gunslinging Chain 1 | . 1 . . Shots Hit Robots 150 | 9 91 8 42 Core Hits 53 | 4 32 7 10 Critical Kills 1 | . 1 . . Critical Parts Destroyed 2 | . 2 . . Critical Strikes 5 | . 5 . . Burn 2 | . 2 . . Destroy 1 | . 1 . . Smash 2 | . 2 . . Melee Attacks 34 | . 24 . 10 Impact 34 | . 24 . 10 Slashing . | . . . . Piercing . | . . . . Sneak Attacks 2 | . 2 . . Combat Hostiles . | . . . . Follow-up Attacks . | . . . . Damage Inflicted 2298 | 116 1469 180 533 Guns 1698 | 116 902 147 533 Cannons 243 | . 243 . . Explosions . | . . . . Melee 320 | . 320 . . Ramming 37 | . 4 33 . Kinetic 440 | 60 380 . . Thermal 1501 | 56 765 147 533 Explosive . | . . . . Electromagnetic . | . . . . Impact 320 | . 320 . . Slashing . | . . . . Piercing . | . . . . Highest Corruption . | . . . . Average Corruption . | . . . . Corruption Purged . | . . . . Corruption Blocked . | . . . . Overload Shots . | . . . . Overflow Damage 31 | . 31 . . Projectiles 6 | . 6 . . Explosions . | . . . . Melee 25 | . 25 . . Knockbacks 1 | . 1 . . Impact 1 | . 1 . . Kinetic . | . . . . Secondary . | . . . . Self-Inflicted Damage . | . . . . Shots . | . . . . Rammed 1 | . 1 . . Targets Rammed 8 | . 3 5 . Kicked 7 | . 2 5 . Crushed . | . . . . Highest Temperature 124 | . 124 27 15 Average Temperature 27 | . 31 11 8 Received Heat Transfer 423 | . 375 6 42 Siege Activations . | . . . . Martial Activations . | . . . . Shielding Activations . | . . . . Robots Disrupted . | . . . . Combat Hostiles . | . . . . Robots Corrupted 1 | . 1 . . Combat Hostiles . | . . . . Parts Fried . | . . . . Impact Corruptions 2 | . 2 . . Robots Melted 1 | . 1 . . Combat Hostiles 1 | . 1 . . Parts Melted 4 | . 3 . 1 Heat Transferred 3574 | 125 1858 333 1258 Parts Sabotaged . | . . . . Parts Stolen . | . . . . Parts Stripped . | . . . . Power Chain Reactions . | . . . . Alert | -11 -10 -10 -10 ------- Run | Yrd Mat Min Sub Maximum Alert Level . | . . . . Low Security (%) 100 | 100 100 100 . Level 1 . | . . . . Level 2 . | . . . . Level 3 . | . . . . Level 4 . | . . . . Level 5 . | . . . . High Security . | . . . . Max Security . | . . . . Peak Influence 154 | 10 154 103 . Initial . | . . . . Average 35 | 1 39 29 . Influence Increases 931 | 15 572 266 78 Destroy 0b10 Robot/C 600 | . 340 200 60 Destroy 0b10 Robot/NC 60 | 15 35 10 . Destroy Leader 118 | . 78 30 10 Allied During Kill 34 | . . 26 8 Successful Hack 20 | . 20 . . Destroy Structure 9 | . 9 . . Lose Combat Pursuer 90 | . 90 . . Influence Decreases 931 | 15 572 218 126 Entered New Map 26 | . . . 26 Time Decay 877 | 15 544 218 100 Lost Part 28 | . 28 . . Squads Dispatched 3 | . 3 . . Investigation 2 | . 2 . . Extermination . | . . . . Reinforcement 1 | . 1 . . Assault . | . . . . Garrison . | . . . . Intercept . | . . . . Searches Triggered . | . . . . Construction Impeded . | . . . . Haulers Reinforced . | . . . . Active Scanning Responses . | . . . . Cargo Convoy Interrupts . | . . . . Stealth | -11 -10 -10 -10 --------- Run | Yrd Mat Min Sub Distress Signals 2 | . 1 1 . Communications Jammed . | . . . . Distress Signals . | . . . . Times Spotted 52 | . 33 11 8 Peak Tracking Total 5 | . 5 3 3 Tactical Retreats 4 | . 4 . . Traps | -11 -10 -10 -10 ------- Run | Yrd Mat Min Sub Traps Triggered 2 | . 2 . . Indirectly . | . . . . Trap Hack Attempts . | . . . . Triggered . | . . . . Disarmed . | . . . . Reprogrammed . | . . . . Reused . | . . . . Traps Extracted . | . . . . Installed . | . . . . Triggered . | . . . . Machines | -11 -10 -10 -10 ---------- Run | Yrd Mat Min Sub Machines Disabled . | . . . . Max in Single Turn . | . . . . Machines Repaired . | . . . . Machines Dismantled . | . . . . Machines Sabotaged . | . . . . Overloaded Fab Kills . | . . . . Hacking | -11 -10 -10 -10 --------- Run | Yrd Mat Min Sub Machines Accessed 7 | . 7 . . Terminals 7 | . 7 . . Fabricators . | . . . . Repair Stations . | . . . . Recycling Units . | . . . . Scanalyzers . | . . . . Garrison Access . | . . . . Total Hacks 18 | . 18 . . Successful 8 | . 8 . . Failed 10 | . 10 . . Catastrophic . | . . . . Database Lockouts . | . . . . Manual 14 | . 14 . . Terminals 18 | . 18 . . Fabricators . | . . . . Repair Stations . | . . . . Recycling Units . | . . . . Scanalyzers . | . . . . Garrison Access . | . . . . Terminal Hacks 2 | . 2 . . Robot Analysis 1 | . 1 . . Zone Layout 1 | . 1 . . Fabricator Hacks . | . . . . Repair Station Hacks . | . . . . Recycling Unit Hacks . | . . . . Scanalyzer . | . . . . Garrison Access Hacks . | . . . . Unauthorized Hacks 6 | . 6 . . Terminals 6 | . 6 . . Disrupt 1 | . 1 . . Skim 5 | . 5 . . Fabricators . | . . . . Repair Stations . | . . . . Recycling Units . | . . . . Scanalyzers . | . . . . Garrison Access . | . . . . Data Cores Recovered 1 | . 1 . . Used . | . . . . Hacking Detections 6 | . 6 . . Full Trace Events . | . . . . Feedback Events . | . . . . Feedback Blocked . | . . . . Robot Schematics Acquired . | . . . . Robots Built . | . . . . Authchips . | . . . . Time . | . . . . Total Robot Build Rating . | . . . . Part Schematics Acquired . | . . . . Parts Built . | . . . . Authchips . | . . . . Time . | . . . . Total Part Build Rating . | . . . . Part Studies Acquired . | . . . . Parts Repaired . | . . . . Time . | . . . . Parts Recycled . | . . . . Recycled Matter . | . . . . Retrieved Matter . | . . . . Retrieved Components . | . . . . Parts Scanalyzed . | . . . . Part Schematics Acquired . | . . . . Parts Damaged . | . . . . Bothacking | -11 -10 -10 -10 ------------ Run | Yrd Mat Min Sub Used RIF Installer . | . . . . Robots Hacked . | . . . . Non-combat . | . . . . Combat . | . . . . Robot Hacks Applied . | . . . . Relay Couplers Released . | . . . . Fabnet Peak Effective % . | . . . . Robots Rewired . | . . . . Allies Hacked . | . . . . Hacks Repelled . | . . . . Allies | -11 -10 -10 -10 -------- Run | Yrd Mat Min Sub Total Allies 3 | . . 3 . Largest Group 3 | . . 3 3 Highest-Rated Group 69 | . . 69 69 Highest-Rated Ally 31 | . . 31 31 Total Orders . | . . . . Ally Attacks 28 | . . 18 10 Total Damage 440 | . . 294 146 Kills 9 | . . 6 3 Allies Corrupted . | . . . . Allies Melted . | . . . . Intel | -11 -10 -10 -10 ------- Run | Yrd Mat Min Sub Active Infowar (turns) 1177 | 14 1163 . . Seismic 1177 | 14 1163 . . Robot Analysis Total 1 | . 1 . . Derelict Logs Recovered 2 | . . 1 1 Drone Launches . | . . . . Drone Recoveries . | . . . . Exploration | -11 -10 -10 -10 ------------- Run | Yrd Mat Min Sub Turns Passed 4330 | 91 2176 1087 976 Spaces Moved 1897 | 59 875 531 432 Core 1 | 1 . . . Treads 311 | . 311 . . Legs 1176 | . 213 531 432 Wheels 409 | 58 351 . . Hover . | . . . . Flight . | . . . . Fastest Speed 50 | 50 90 190 190 Average Speed 166 | 91 144 190 190 Slowest Speed 190 | 100 190 190 190 Overloaded Moves . | . . . . Propulsion Burnouts . | . . . . Robots Hopped . | . . . . Potential Cave-ins . | . . . . Cave-ins Triggered . | . . . . Exploration Rate (%) 56 | 4 97 94 30 Regions Visited 3 Branch Regions 2 Pre-discovered Areas 2 | . . 1 1 Known Exits Taken 1 | . . 1 . Unknown Exits Taken 2 | 1 1 . . Scrap Searched 5 | . . 2 3 Spaces Dug 8 | . 7 . 1 Terrain Destroyed 8 | . 7 . 1 Melee 8 | . 7 . 1 Projectile . | . . . . AOE . | . . . . Terrain Rammed . | . . . . Walls Destroyed . | . . . . Machines Disabled . | . . . . Actions | -11 -10 -10 -10 --------- Run | Yrd Mat Min Sub Total 2805 | 78 1623 588 516 Wait 653 | 1 607 33 12 Move 1894 | 58 874 530 432 Hop . | . . . . Pick Up 32 | 5 18 3 6 Fast Attach 9 | 7 2 . . Attach 9 | . 1 . 8 Detach . | . . . . Swap 30 | . 18 2 10 Drop 27 | . 12 5 10 Fire 109 | 7 64 10 28 Melee 34 | . 24 . 10 Ram . | . . . . Kick 7 | . 2 5 . Crush 1 | . 1 . . Escape Stasis . | . . . . Rewire . | . . . . Trap . | . . . . Miscellaneous . | . . . . Route ------- -11/Scrapyard -10/Materials (discovered 5 exits: *Mat x3 / [*Min] / Sub) -10/Mines (discovered 3 exits: *Mat x2 / *Sub) -10/Subcaves (discovered 3 exits: *Mat x2 / Rec) History --------- Turn | Location | Event 11 | -11/Scrapyard | Discovered new exit (range 16) 92 | -11/Scrapyard | Entered Materials 144 | -10/Materials | Discovered new exit (range 8) 309 | -10/Materials | Build established: Mutant 522 | -10/Materials | Discovered new exit (range 14) 882 | -10/Materials | Discovered new exit (range 9) 1204 | -10/Materials | Discovered new exit (range 5) 1731 | -10/Materials | Identified exit to Subcaves 1918 | -10/Materials | Learned location of 2 exits from Subcaves 1994 | -10/Materials | Learned location of 2 exits from Materials 2019 | -10/Materials | Learned Recycling recycling unit intel 2055 | -10/Materials | Learned 4 Recycling zone layouts 2103 | -10/Materials | Learned Storage emergency access door positions 2231 | -10/Materials | Learned location of 2 exits from Mines 2268 | -10/Materials | Entered Mines 2269 | -10/Mines | Identified exit to Materials 2726 | -10/Mines | Learned location of Storage (-8) 3002 | -10/Mines | Learned location of 2 exits from Materials 3218 | -10/Mines | Escorted by a lone wolf Derelict 3355 | -10/Mines | Entered Subcaves 3355 | -10/Subcaves | Accompanied by 3 allies 3356 | -10/Subcaves | Identified exit to Materials 3357 | -10/Subcaves | Identified exit to Recycling 3360 | -10/Subcaves | Led the pair of lost Derelicts to an unsafe place 3370 | -10/Subcaves | Learned location of Recycling (-8) 3920 | -10/Subcaves | Core integrity fell below 50% 4318 | -10/Subcaves | Core integrity fell below 20% 4331 | -10/Subcaves | Destroyed by FQ-I77(R) with Subdweller Machine Gun Last Messages --------------- 03939_ Dropped Aluminum Leg. 03942_ Dropped Carbon-fiber Leg. 03943_ Acquired 20 matter. 03950_ Subatomizers dissect the Sub. Monowheel. 03955_ Dropped Aluminum Leg. 03955_ Acquired Carbon-fiber Leg. 03965_ Subatomizers dissect the Sub. Monowheel. 04023_ WU-WZ2(z) fiddles with the Twisted Machinery. 04060_ Acquired 10 matter. 04093_ Subatomizers dissect the Wheel. 04242_ CO-6A6(R) destroyed. 04247_ Acquired 10 matter. 04271_ Lgt. Angular Momentum Engine destroyed. 04278_ Particle Gun destroyed. 04280_ Lgt. Nuclear Core destroyed. 04282_ Cooling System destroyed. 04289_ Particle Gun destroyed. 04294_ Carbon-fiber Leg destroyed. 04325_ Particle Gun destroyed. 04327_ Lgt. Armor Plating destroyed. Map ----- +----------------------------------------------------+ | ?????????????????????????????????????????????????? | | ?????????????????????????????????????????????????? | | ?????????????????????????????????????????????????? | | ?????????????????????????????????????????????????? | | ?????????????????????????????????????????????????? | | ?????????????????????????????????????????????????? | | ?????????????????????????????????????????????????? | | ?????????????????????????????????????????????????? | | ?????????????????????????????????????????????????? | | ?????????????????????????????????????????????????? | | ?????????????????????????????????????????????????? | | ?????????????????????????????????????????????????? | | ?????????????????????????????????????????????????? | | ?????????????????????????????????????????????????? | | ?????????????????????????????????????????????????? | | ?????????????????????????????????????????????????? | | ?????????????????????????????????????????????????? | | ?????????????????????????????????????????????????? | | ?????????????????????????????????????????????????? | | ?????????????????????????????????????????????????? | | ?????????????????????????????????????????????????? | | ??????????????????????????????###????????????????? | | ???????????????????????######## ##???????????????? | | ????????????????????##?# ####????????????? | | ???????????????????## ##R #?????######## | | ???????????????????#" R@ ##???## # | | ???????????????????## ##### ## ##### | | ????????????????????## ##??#[ ## # | | ???????????????? "##### ####%&## ## ## | | ????????????????"""""##" !####### ##### | | ????????????????""""" " " ##????## #???? | | ????????????????""""" """"""#?????# #???? | | ????????????????""""" ##"""" ??# #??? | | ????????????????###### ####""""##?### ### ##??? | | ?????????????????????###??######????#####?####???? | | ?????????????????????????????????????????????????? | | ?????????????????????????????????????????????????? | | ?????????????????????????????????????????????????? | | ?????????????????????????????????????????????????? | | ?????????????????????????????????????????????????? | | ?????????????????????????????????????????????????? | | ?????????????????????????????????????????????????? | | ?????????????????????????????????????????????????? | | ?????????????????????????????????????????????????? | | ?????????????????????????????????????????????????? | | ?????????????????????????????????????????????????? | | ?????????????????????????????????????????????????? | | ?????????????????????????????????????????????????? | | ?????????????????????????????????????????????????? | | | +----------------------------------------------------+ Best States ------------- Heat Dissipation 47 Energy Generation 18 Energy Capacity 250 Matter Stores 300 Matter Capacity 300 Sight Range 16 Terrain Scan Density 10 Armor Coverage 150 Evasion (%) 42 Recoil Reduction 2 Item Schematics ----------------- None Robot Schematics ------------------ None Fabricated ------------ Nothing Repaired ---------- Nothing Studied --------- None Alien Tech Used ----------------- None Achievements -------------- None Challenges ------------ None Game ------ Seed WeaponsShockboltReactor Manual? 0 Play Time 00:20:24 Cumulative 480.3 hours Start 2026.09.13 @ 15:06:26 End 2026.09.13 @ 15:26:14 Sessions 1 Manual Loads 0 Difficulty Rogue Special Mode None Game No. 354 Rogue 354 Adventurer 0 Explorer 0 Win Type - Total 9 Types 4/0/3/2/0/0/0/0/0/0 Lore% 60 Gallery% 72 Achievement% 57 Wizard Run 0 Options --------- Layout 2 ASCII 0 Keyboard 1 Movement Vi Keybinds 0 Fullscreen 2 Font 32/Smallcaps Map View 77x44 Zoom Use 0% Tactical HUD 1 Map Filters NONE Filters NONE Steam 1 RUN: 331d6442-64ad-415f-a8ba-fc072b157ff1